[Event "African Online-ch Open 2021"]
[Site "Online"]
[Date "2021.02.01"]
[Round "4.22"]
[White "Fernandes, Avelino"]
[Black "Ebersohn, Raymond Gerhard"]
[Result "1-0"]
[ECO "D00"]
[WhiteElo "1887"]
[BlackElo "1726"]
[Annotator "NA RC"]
[PlyCount "111"]
[EventDate "2021.02.01"]
[EventType "swiss"]
[EventCountry "NET"]
[SourceTitle "playchess.com"]
[Source "ChessBase"]
[SourceQuality "1"]
[TimeControl "1500+10"]

1. d4 {[%emt 0:00:00]} Nf6 {[%emt 0:00:16]} 2. Bf4 {[%emt 0:00:09]} d5 {[%emt 0:00:10]} 3. e3 {[%emt 0:00:05]} c5 {[%emt 0:00:05]} 4. c3 {[%emt 0:00:03]} Nc6 {[%emt 0:00:11]} 5. Bg3 {[%emt 0:00:10]} Qb6 {[%emt 0:00:07]} 6. Qb3 {[%emt 0:00:49]} e6 {[%emt 0:01:22]} 7. Nd2 {[%emt 0:00:18]} Bd7 {[%emt 0:00:11]} 8. Ngf3 {[%emt 0:00:05]} Rc8 {[%emt 0:00:53]} 9. Be2 {[%emt 0:00:05]} Be7 {[%emt 0:00:33]} 10. h3 {[%emt 0:00:06]} O-O {[%emt 0:00:10]} 11. O-O {[%emt 0:00:04]} Na5 {[%emt 0:00:21]} 12. Qxb6 {[%emt 0:00:12]} axb6 {[%emt 0:00:04]} 13. Ne5 {[%emt 0:00:06]} Nc6 {[%emt 0:00:31]} 14. f4 {[%emt 0:00:06]} Rfd8 {[%emt 0:00:59]} 15. Bh2 {[%emt 0:01:02]} g6 {[%emt 0:01:20]} 16. Bd3 {[%emt 0:00:12]} Be8 {[%emt 0:00:29]} 17. g4 {[%emt 0:00:06]} Nd7 {[%emt 0:00:13]} 18. Rf3 {[%emt 0:00:33]} f6 {[%emt 0:00:55]} 19. Nxc6 {[%emt 0:00:32]} bxc6 {[%emt 0:00:08]} 20. f5 {[%emt 0:00:02]} e5 {[%emt 0:04:18]} 21. Ba6 {[%emt 0:01:47]} Rc7 {[%emt 0:00:11]} 22. dxe5 {[%emt 0:07:59]} fxe5 {[%emt 0:00:04]} 23. e4 {[%emt 0:01:02]} Ra7 {[%emt 0:00:07]} 24. Bf1 {[%emt 0:00:14]} Bg5 {[%emt 0:03:02]} 25. Rf2 {[%emt 0:02:14]} Be3 {[%emt 0:00:09]} 26. Kg2 {[%emt 0:00:05]} Bxf2 {[%emt 0:00:04]} 27. Kxf2 {[%emt 0:00:03]} Bf7 {[%emt 0:02:02]} 28. a3 {[%emt 0:00:07]} Re8 {[%emt 0:00:26]} 29. Rd1 {[%emt 0:00:16]} gxf5 {[%emt 0:00:31]} 30. exf5 {[%emt 0:00:19]} e4 {[%emt 0:01:21]} 31. Ke3 {[%emt 0:00:06]} c4 {[%emt 0:00:32]} 32. Be2 {[%emt 0:01:54]} Nc5 {[%emt 0:00:13]} 33. g5 {[%emt 0:01:22]} Nd3 {[%emt 0:00:09]} 34. Rb1 {[%emt 0:00:05]} c5 {[%emt 0:00:19]} 35. Bg4 {[%emt 0:00:24]} Rd7 {[%emt 0:00:40]} 36. f6 {[%emt 0:00:28]} Be6 {[%emt 0:00:07]} 37. Bh5 {[%emt 0:00:17]} d4+ {[%emt 0:02:08]} 38. Ke2 {[%emt 0:01:07]} Bf7 {[%emt 0:00:48]} 39. Bxf7+ {[%emt 0:00:12]} Kxf7 {[%emt 0:00:04]} 40. Nxc4 {[%emt 0:00:05]} Re6 {[%emt 0:00:16]} 41. a4 {[%emt 0:01:07]} Ra7 {[%emt 0:00:50]} 42. b3 {[%emt 0:00:05]} b5 {[%emt 0:00:10]} 43. Nd6+ {[%emt 0:00:07]} Rxd6 {[%emt 0:00:03]} 44. Bxd6 {[%emt 0:00:03]} bxa4 {[%emt 0:00:02]} 45. cxd4 {[%emt 0:00:05]} cxd4 {[%emt 0:00:20]} 46. bxa4 {[%emt 0:00:04]} Rd7 {[%emt 0:00:30]} 47. Rb6 {[%emt 0:00:23]} Kg6 {[%emt 0:00:29]} 48. h4 {[%emt 0:00:10]} Kh5 {[%emt 0:00:44]} 49. a5 {[%emt 0:00:14]} Kg4 {[%emt 0:00:26]} 50. a6 {[%emt 0:00:05]} Nf4+ {[%emt 0:00:08]} 51. Bxf4 {[%emt 0:01:07]} Kxf4 {[%emt 0:00:04]} 52. f7 {[%emt 0:00:02]} d3+ {[%emt 0:00:04]} 53. Kd1 {[%emt 0:00:04]} Rd8 {[%emt 0:00:37]} 54. Rf6+ {[%emt 0:00:05]} Ke3 {[%emt 0:00:04]} 55. f8=Q {[%emt 0:00:04]} Rd5 {[%emt 0:00:04]} 56. Qb4 {[%emt 0:00:13]} 1-0

[Event "African Online-ch Open 2021"]
[Site "Online"]
[Date "2021.02.01"]
[Round "5.18"]
[White "Bongo Akanga Ndjila, Barthelemy"]
[Black "Fernandes, Avelino"]
[Result "1/2-1/2"]
[ECO "A91"]
[WhiteElo "1803"]
[BlackElo "1887"]
[Annotator "NA RC"]
[PlyCount "90"]
[EventDate "2021.02.01"]
[EventType "swiss"]
[EventCountry "NET"]
[SourceTitle "playchess.com"]
[Source "ChessBase"]
[SourceQuality "1"]
[TimeControl "1500+10"]

1. d4 {[%emt 0:00:00]} e6 {[%emt 0:00:06]} 2. c4 {[%emt 0:00:06]} f5 {[%emt 0:00:03]} 3. g3 {[%emt 0:00:03]} Nf6 {[%emt 0:00:02]} 4. Bg2 {[%emt 0:00:02]} d5 {[%emt 0:00:02]} 5. Nc3 {[%emt 0:00:02]} c6 {[%emt 0:00:02]} 6. Nh3 {[%emt 0:00:02]} Be7 {[%emt 0:01:00]} 7. b3 {[%emt 0:01:10]} O-O {[%emt 0:00:17]} 8. O-O {[%emt 0:00:07]} Ne4 {[%emt 0:01:30]} 9. Nxe4 {[%emt 0:00:41]} fxe4 {[%emt 0:00:05]} 10. e3 {[%emt 0:00:03]} Nd7 {[%emt 0:00:22]} 11. Nf4 {[%emt 0:00:18]} Nf6 {[%emt 0:00:11]} 12. Nh5 {[%emt 0:00:10]} Bd7 {[%emt 0:01:00]} 13. Bb2 {[%emt 0:00:19]} Qe8 {[%emt 0:00:08]} 14. Nxf6+ {[%emt 0:00:28]} Rxf6 {[%emt 0:00:05]} 15. f3 {[%emt 0:00:03]} exf3 {[%emt 0:00:31]} 16. Bxf3 {[%emt 0:00:08]} Qg6 {[%emt 0:00:06]} 17. Qe2 {[%emt 0:00:09]} Raf8 {[%emt 0:00:09]} 18. e4 {[%emt 0:00:26]} dxe4 {[%emt 0:04:41]} 19. Bxe4 {[%emt 0:00:08]} Rxf1+ {[%emt 0:00:04]} 20. Rxf1 {[%emt 0:00:04]} Rxf1+ {[%emt 0:00:03]} 21. Kxf1 {[%emt 0:00:02]} Qf7+ {[%emt 0:00:11]} 22. Kg2 {[%emt 0:00:05]} Bf6 {[%emt 0:00:03]} 23. Qd3 {[%emt 0:01:20]} g6 {[%emt 0:00:05]} 24. Bc1 {[%emt 0:00:17]} Qe7 {[%emt 0:00:18]} 25. h4 {[%emt 0:00:36]} Be8 {[%emt 0:00:17]} 26. Be3 {[%emt 0:03:23]} Bf7 {[%emt 0:00:50]} 27. d5 {[%emt 0:00:41]} exd5 {[%emt 0:00:12]} 28. cxd5 {[%emt 0:00:02]} cxd5 {[%emt 0:00:03]} 29. Bxd5 {[%emt 0:00:02]} a6 {[%emt 0:00:35]} 30. Bxf7+ {[%emt 0:00:18]} Kxf7 {[%emt 0:00:10]} 31. Bh6 {[%emt 0:01:27]} Ke8 {[%emt 0:01:35]} 32. Qc4 {[%emt 0:00:37]} Kd7 {[%emt 0:00:11]} 33. Qd5+ {[%emt 0:00:12]} Kc8 {[%emt 0:00:08]} 34. Qg8+ {[%emt 0:00:25]} Kd7 {[%emt 0:00:05]} 35. Kf3 {[%emt 0:01:05]} Be5 {[%emt 0:01:04]} 36. Bg5 {[%emt 0:00:55]} Bf6 {[%emt 0:00:15]} 37. Qd5+ {[%emt 0:06:17]} Kc8 $11 {[%emt 0:00:18]} 38. Qg8+ {[%emt 0:00:11]} Kd7 {[%emt 0:00:04]} 39. Qb8 {[%emt 0:00:12]} Kc6 {[%emt 0:00:09]} 40. Qc8+ {[%emt 0:00:03]} Kd5 {[%emt 0:03:06]} 41. Qc4+ {[%emt 0:01:20]} Kd6 {[%emt 0:00:40]} 42. Qb4+ {[%emt 0:00:21]} Ke6 {[%emt 0:00:06]} 43. Qc4+ {[%emt 0:00:56]} Kd7 {[%emt 0:00:06]} 44. Qd5+ {[%emt 0:00:19]} Ke8 {[%emt 0:00:09]} 45. Qg8+ {[%emt 0:00:07]} Kd7 {[%emt 0:00:04]} 1/2-1/2

[Event "African Online-ch Open 2021"]
[Site "Online"]
[Date "2021.02.01"]
[Round "5.21"]
[White "Singe, Philip Mbawala"]
[Black "Monaheng Motlomelo"]
[Result "1-0"]
[ECO "C50"]
[WhiteElo "1857"]
[BlackElo "1538"]
[Annotator "NA RC"]
[PlyCount "117"]
[EventDate "2021.02.01"]
[EventType "swiss"]
[EventCountry "NET"]
[SourceTitle "playchess.com"]
[Source "ChessBase"]
[SourceQuality "1"]
[TimeControl "1500+10"]

1. e4 {[%emt 0:00:07]} e5 {[%emt 0:00:06]} 2. Nf3 {[%emt 0:00:05]} Nc6 {[%emt 0:00:08]} 3. d4 {[%emt 0:00:03]} exd4 {[%emt 0:00:04]} 4. Bc4 {[%emt 0:00:03]} Be7 {[%emt 0:00:06]} 5. c3 {[%emt 0:00:04]} d6 {[%emt 0:00:16]} 6. cxd4 {[%emt 0:00:03]} Nf6 {[%emt 0:00:06]} 7. Nc3 {[%emt 0:00:03]} O-O {[%emt 0:00:06]} 8. O-O {[%emt 0:00:05]} a6 {[%emt 0:00:06]} 9. h3 {[%emt 0:00:02]} Bd7 {[%emt 0:00:09]} 10. Re1 {[%emt 0:00:19]} b5 {[%emt 0:00:07]} 11. Bd3 {[%emt 0:00:08]} Re8 {[%emt 0:00:07]} 12. a3 {[%emt 0:00:04]} Bf8 {[%emt 0:00:05]} 13. Bb1 {[%emt 0:00:08]} g6 {[%emt 0:00:04]} 14. Bg5 {[%emt 0:00:05]} Be7 {[%emt 0:01:05]} 15. Ba2 {[%emt 0:00:33]} Nh5 {[%emt 0:00:37]} 16. Bh6 {[%emt 0:00:37]} Ng7 {[%emt 0:00:20]} 17. Nd5 {[%emt 0:00:24]} Ne6 {[%emt 0:01:06]} 18. Nxe7+ {[%emt 0:00:06]} Nxe7 {[%emt 0:00:08]} 19. d5 {[%emt 0:00:16]} Kh8 {[%emt 0:05:02]} 20. dxe6 {[%emt 0:00:06]} fxe6 {[%emt 0:00:05]} 21. Bxe6 $18 {[%emt 0:00:28]} Ng8 {[%emt 0:00:28]} 22. Bxg8 {[%emt 0:00:15]} Kxg8 {[%emt 0:00:08]} 23. Bg5 {[%emt 0:00:13]} Qc8 {[%emt 0:00:16]} 24. Qd4 {[%emt 0:00:05]} Be6 {[%emt 0:00:17]} 25. Bh6 {[%emt 0:00:07]} Qd7 {[%emt 0:00:06]} 26. Ng5 {[%emt 0:00:03]} c5 {[%emt 0:00:21]} 27. Qc3 {[%emt 0:00:11]} a5 {[%emt 0:00:06]} 28. Nxe6 {[%emt 0:00:03]} Rxe6 {[%emt 0:00:07]} 29. Rad1 {[%emt 0:00:05]} Qe7 {[%emt 0:00:10]} 30. f3 {[%emt 0:00:13]} b4 {[%emt 0:00:05]} 31. Qc4 {[%emt 0:00:05]} Re8 {[%emt 0:00:46]} 32. Re2 {[%emt 0:00:04]} Kh8 {[%emt 0:00:33]} 33. Red2 {[%emt 0:00:08]} Qh4 {[%emt 0:00:19]} 34. Be3 {[%emt 0:00:07]} Qf6 {[%emt 0:00:56]} 35. Bf2 {[%emt 0:00:09]} Rd8 {[%emt 0:01:39]} 36. Bg3 {[%emt 0:00:08]} Qe7 {[%emt 0:00:50]} 37. e5 {[%emt 0:00:13]} bxa3 {[%emt 0:01:38]} 38. bxa3 {[%emt 0:00:05]} Rxe5 {[%emt 0:01:48]} 39. Bxe5+ {[%emt 0:00:05]} Qxe5 {[%emt 0:00:03]} 40. Qe4 {[%emt 0:00:07]} Qf6 {[%emt 0:00:29]} 41. Qc6 {[%emt 0:00:14]} Qc3 {[%emt 0:00:38]} 42. Rxd6 {[%emt 0:00:07]} Qe3+ {[%emt 0:00:13]} 43. Kh1 {[%emt 0:00:05]} Rxd6 {[%emt 0:00:07]} 44. Qxd6 {[%emt 0:00:03]} Kg7 {[%emt 0:00:15]} 45. Qd7+ {[%emt 0:00:04]} Kh6 {[%emt 0:00:04]} 46. Qg4 {[%emt 0:00:04]} Qe2 {[%emt 0:00:48]} 47. Qh4+ {[%emt 0:00:05]} Kg7 {[%emt 0:00:06]} 48. Re1 {[%emt 0:00:02]} Qb2 {[%emt 0:00:36]} 49. Qe7+ {[%emt 0:00:10]} Kh6 {[%emt 0:00:08]} 50. Qf8+ {[%emt 0:00:02]} Kh5 {[%emt 0:00:11]} 51. g4+ {[%emt 0:00:42]} Kh4 {[%emt 0:00:09]} 52. Qh6+ {[%emt 0:00:03]} Kg3 {[%emt 0:00:06]} 53. Rg1+ {[%emt 0:00:02]} Kxf3 {[%emt 0:00:09]} 54. Qf8+ {[%emt 0:00:07]} Ke4 {[%emt 0:00:12]} 55. Qe7+ {[%emt 0:00:11]} Kd5 {[%emt 0:00:05]} 56. Rd1+ {[%emt 0:00:08]} Kc4 {[%emt 0:00:07]} 57. Qe6+ {[%emt 0:00:04]} Kb5 {[%emt 0:00:06]} 58. Qd7+ {[%emt 0:00:06]} Kc4 {[%emt 0:00:07]} 59. Qd3# {[%emt 0:00:03]} 1-0

[Event "African Online-ch Open 2021"]
[Site "Online"]
[Date "2021.02.01"]
[Round "6.17"]
[White "Cambando, Jose"]
[Black "Bongo Akanga Ndjila, Barthelemy"]
[Result "1-0"]
[ECO "A11"]
[WhiteElo "2128"]
[BlackElo "1803"]
[Annotator "RC"]
[PlyCount "81"]
[EventDate "2021.02.01"]
[EventType "swiss"]
[EventCountry "NET"]
[SourceTitle "playchess.com"]
[Source "ChessBase"]
[SourceQuality "1"]
[TimeControl "1500+10"]

1. Nf3 {[%emt 0:01:00]} d5 {[%emt 0:03:50]} 2. g3 {[%emt 0:00:07]} c6 {[%emt 0:00:12]} 3. Bg2 {[%emt 0:00:04]} Nf6 {[%emt 0:00:03]} 4. O-O {[%emt 0:00:03]} Bf5 {[%emt 0:00:04]} 5. d3 {[%emt 0:00:03]} e6 {[%emt 0:00:12]} 6. Nbd2 {[%emt 0:00:07]} Be7 {[%emt 0:01:36]} 7. c4 {[%emt 0:00:13]} h6 {[%emt 0:00:06]} 8. h3 {[%emt 0:00:08]} O-O {[%emt 0:00:04]} 9. a3 {[%emt 0:00:06]} a5 {[%emt 0:00:05]} 10. b3 {[%emt 0:00:04]} Bh7 {[%emt 0:00:09]} 11. Bb2 {[%emt 0:00:04]} Nbd7 {[%emt 0:00:11]} 12. Qc2 {[%emt 0:00:14]} a4 {[%emt 0:01:37]} 13. b4 {[%emt 0:00:06]} dxc4 {[%emt 0:00:29]} 14. Nxc4 {[%emt 0:00:09]} Nd5 {[%emt 0:02:08]} 15. Rac1 {[%emt 0:00:25]} Bf6 {[%emt 0:00:02]} 16. Na5 {[%emt 0:01:44]} Bxb2 {[%emt 0:00:32]} 17. Qxb2 {[%emt 0:00:05]} Qb8 {[%emt 0:02:02]} 18. Rc2 {[%emt 0:00:11]} Rc8 {[%emt 0:00:13]} 19. Rfc1 {[%emt 0:00:04]} N7b6 {[%emt 0:00:08]} 20. e4 {[%emt 0:00:10]} Nc7 {[%emt 0:00:17]} 21. Qd4 {[%emt 0:00:42]} Qa7 {[%emt 0:00:12]} 22. Nxc6 {[%emt 0:00:49]} bxc6 {[%emt 0:00:02]} 23. Rxc6 {[%emt 0:00:04]} Rab8 {[%emt 0:02:28]} 24. R1c5 {[%emt 0:08:07]} Bg6 {[%emt 0:03:10]} 25. Qc3 {[%emt 0:00:39]} Nba8 {[%emt 0:01:23]} 26. Ne5 {[%emt 0:00:18]} Kh7 {[%emt 0:00:27]} 27. d4 {[%emt 0:00:32]} Nb5 {[%emt 0:01:15]} 28. Rxb5 {[%emt 0:00:05]} Rxb5 {[%emt 0:02:11]} 29. Rxc8 {[%emt 0:00:08]} Rb7 {[%emt 0:01:32]} 30. Nxg6 {[%emt 0:00:25]} Kxg6 {[%emt 0:00:25]} 31. e5 {[%emt 0:00:04]} Rc7 {[%emt 0:00:58]} 32. Qd3+ {[%emt 0:00:12]} f5 {[%emt 0:00:11]} 33. exf6+ {[%emt 0:00:06]} Kxf6 {[%emt 0:00:02]} 34. Rxa8 {[%emt 0:00:04]} Rc1+ {[%emt 0:00:14]} 35. Kh2 {[%emt 0:00:04]} Qc7 {[%emt 0:00:43]} 36. Qf3+ {[%emt 0:00:34]} Kg6 {[%emt 0:00:10]} 37. Qe4+ {[%emt 0:00:03]} Kf6 {[%emt 0:00:08]} 38. Rf8+ {[%emt 0:00:15]} Ke7 {[%emt 0:00:06]} 39. Qa8 {[%emt 0:00:07]} Ra1 {[%emt 0:01:34]} 40. Qe8+ {[%emt 0:00:31]} Kd6 {[%emt 0:00:03]} 41. Rf7 {[%emt 0:00:05]} 1-0

[Event "African Online-ch Open 2021"]
[Site "Online"]
[Date "2021.02.01"]
[Round "6.18"]
[White "Ndegwa, Jackson Kamau"]
[Black "Singe, Philip Mbawala"]
[Result "1-0"]
[ECO "C42"]
[WhiteElo "2001"]
[BlackElo "1857"]
[Annotator "RC"]
[PlyCount "121"]
[EventDate "2021.02.01"]
[EventType "swiss"]
[EventCountry "NET"]
[SourceTitle "playchess.com"]
[Source "ChessBase"]
[SourceQuality "1"]
[TimeControl "1500+10"]

1. e4 {[%emt 0:00:00]} e5 {[%emt 0:00:35]} 2. Nf3 {[%emt 0:00:05]} Nf6 {[%emt 0:01:45]} 3. Nxe5 {[%emt 0:00:07]} d6 {[%emt 0:00:04]} 4. Nf3 {[%emt 0:00:08]} Nxe4 {[%emt 0:00:04]} 5. d4 {[%emt 0:00:02]} d5 {[%emt 0:00:03]} 6. Bd3 {[%emt 0:00:04]} Nc6 {[%emt 0:00:04]} 7. O-O {[%emt 0:00:03]} Be7 {[%emt 0:00:07]} 8. c3 {[%emt 0:00:05]} O-O {[%emt 0:00:08]} 9. Bf4 {[%emt 0:00:06]} Bg4 {[%emt 0:00:04]} 10. h3 {[%emt 0:00:02]} Bh5 {[%emt 0:00:03]} 11. Nbd2 {[%emt 0:00:07]} Nxd2 {[%emt 0:00:05]} 12. Qxd2 {[%emt 0:00:08]} Bg6 {[%emt 0:00:04]} 13. Rfe1 {[%emt 0:00:07]} Bd6 {[%emt 0:00:03]} 14. Ne5 {[%emt 0:00:05]} Re8 {[%emt 0:00:22]} 15. Nxg6 {[%emt 0:00:08]} hxg6 {[%emt 0:00:03]} 16. Bb5 {[%emt 0:00:09]} Bxf4 {[%emt 0:00:06]} 17. Qxf4 {[%emt 0:00:05]} Qd6 {[%emt 0:00:05]} 18. Qxd6 {[%emt 0:00:05]} cxd6 {[%emt 0:00:02]} 19. f3 {[%emt 0:00:10]} Kf8 {[%emt 0:00:03]} 20. Ba4 {[%emt 0:00:07]} Rxe1+ {[%emt 0:00:12]} 21. Rxe1 {[%emt 0:00:10]} Re8 {[%emt 0:00:02]} 22. Rxe8+ {[%emt 0:00:06]} Kxe8 {[%emt 0:00:03]} 23. Kf2 {[%emt 0:00:05]} Kd7 {[%emt 0:00:06]} 24. g4 {[%emt 0:00:05]} g5 {[%emt 0:00:04]} 25. Kg3 {[%emt 0:00:03]} Ke6 {[%emt 0:00:03]} 26. Bxc6 {[%emt 0:00:04]} bxc6 {[%emt 0:00:03]} 27. f4 {[%emt 0:00:02]} f6 {[%emt 0:00:08]} 28. f5+ {[%emt 0:00:06]} Kf7 {[%emt 0:00:07]} 29. h4 {[%emt 0:00:41]} Ke7 {[%emt 0:00:05]} 30. hxg5 {[%emt 0:00:24]} fxg5 {[%emt 0:00:02]} 31. Kf3 {[%emt 0:00:03]} Kd7 {[%emt 0:00:03]} 32. Ke3 {[%emt 0:00:02]} Kc7 {[%emt 0:00:01]} 33. Kd3 {[%emt 0:00:02]} Kb6 {[%emt 0:00:02]} 34. c4 {[%emt 0:00:03]} Ka5 {[%emt 0:00:11]} 35. cxd5 {[%emt 0:00:05]} cxd5 {[%emt 0:00:01]} 36. Kc3 {[%emt 0:00:01]} Kb5 {[%emt 0:00:03]} 37. Kb3 {[%emt 0:00:09]} a5 {[%emt 0:00:02]} 38. a4+ {[%emt 0:00:05]} Ka6 {[%emt 0:00:15]} 39. Ka3 {[%emt 0:00:06]} Kb6 {[%emt 0:00:06]} 40. b4 {[%emt 0:00:02]} Ka6 {[%emt 0:00:06]} 41. bxa5 {[%emt 0:00:02]} Kxa5 {[%emt 0:00:03]} 42. Kb3 {[%emt 0:00:02]} Ka6 {[%emt 0:00:02]} 43. Kb4 {[%emt 0:00:02]} Kb6 {[%emt 0:00:02]} 44. a5+ {[%emt 0:00:02]} Ka6 {[%emt 0:00:03]} 45. Ka4 {[%emt 0:00:01]} Ka7 {[%emt 0:00:04]} 46. Kb5 {[%emt 0:00:02]} Kb7 {[%emt 0:00:02]} 47. a6+ {[%emt 0:00:01]} Kc7 {[%emt 0:00:06]} 48. a7 {[%emt 0:00:04]} Kb7 {[%emt 0:00:01]} 49. a8=Q+ {[%emt 0:00:05]} Kxa8 {[%emt 0:00:02]} 50. Kc6 {[%emt 0:00:02]} Kb8 {[%emt 0:00:02]} 51. Kxd6 {[%emt 0:00:02]} Kc8 {[%emt 0:00:02]} 52. Kxd5 {[%emt 0:00:03]} Kd7 {[%emt 0:00:02]} 53. Ke5 {[%emt 0:00:01]} Ke7 {[%emt 0:00:02]} 54. d5 {[%emt 0:00:02]} Kd7 {[%emt 0:00:02]} 55. d6 {[%emt 0:00:02]} Kd8 {[%emt 0:00:03]} 56. Ke6 {[%emt 0:00:02]} Ke8 {[%emt 0:00:01]} 57. d7+ {[%emt 0:00:04]} Kd8 {[%emt 0:00:02]} 58. Kf7 {[%emt 0:00:01]} Kxd7 {[%emt 0:00:02]} 59. Kxg7 {[%emt 0:00:03]} Ke7 {[%emt 0:00:01]} 60. Kg6 {[%emt 0:00:01]} Kf8 {[%emt 0:00:03]} 61. Kxg5 {[%emt 0:00:02]} 1-0

[Event "African Online-ch Open 2021"]
[Site "Online"]
[Date "2021.02.01"]
[Round "6.21"]
[White "Khalema, Sechaba"]
[Black "Vermaak, Ashley Christopher"]
[Result "0-1"]
[ECO "D10"]
[WhiteElo "1827"]
[BlackElo "1751"]
[Annotator "NA RC"]
[PlyCount "74"]
[EventDate "2021.02.01"]
[EventType "swiss"]
[EventCountry "NET"]
[SourceTitle "playchess.com"]
[Source "ChessBase"]
[SourceQuality "1"]
[TimeControl "1500+10"]

1. d4 {[%emt 0:00:00]} d5 {[%emt 0:00:06]} 2. c4 {[%emt 0:00:03]} c6 {[%emt 0:00:03]} 3. cxd5 {[%emt 0:00:19]} cxd5 {[%emt 0:00:04]} 4. Nc3 {[%emt 0:00:05]} Nf6 {[%emt 0:00:04]} 5. Bf4 {[%emt 0:00:03]} Nc6 {[%emt 0:00:04]} 6. e3 {[%emt 0:00:02]} a6 {[%emt 0:00:07]} 7. Bd3 {[%emt 0:00:04]} Bg4 {[%emt 0:00:48]} 8. Nge2 {[%emt 0:00:05]} e6 {[%emt 0:00:08]} 9. h3 {[%emt 0:00:05]} Bh5 {[%emt 0:00:04]} 10. O-O {[%emt 0:00:03]} Bd6 {[%emt 0:00:15]} 11. Qd2 {[%emt 0:00:06]} Bg6 {[%emt 0:00:28]} 12. Rac1 {[%emt 0:00:04]} Rc8 {[%emt 0:00:55]} 13. Rfd1 {[%emt 0:00:10]} O-O {[%emt 0:00:35]} 14. Kh1 {[%emt 0:04:31]} Ne4 {[%emt 0:02:44]} 15. Bxe4 {[%emt 0:00:07]} Bxe4 {[%emt 0:00:09]} 16. Nxe4 {[%emt 0:00:04]} dxe4 {[%emt 0:00:03]} 17. a3 {[%emt 0:00:17]} Bxf4 {[%emt 0:03:08]} 18. Nxf4 {[%emt 0:00:13]} g5 {[%emt 0:02:32]} 19. Ne2 {[%emt 0:00:09]} Ne7 {[%emt 0:03:28]} 20. Rxc8 {[%emt 0:00:34]} Qxc8 {[%emt 0:00:05]} 21. Rc1 {[%emt 0:00:02]} Qd7 {[%emt 0:00:12]} 22. Rc5 {[%emt 0:00:03]} Nd5 {[%emt 0:00:29]} 23. Qc2 {[%emt 0:00:04]} f5 {[%emt 0:00:23]} 24. Kg1 {[%emt 0:00:29]} h5 {[%emt 0:00:27]} 25. g4 {[%emt 0:01:28]} hxg4 {[%emt 0:03:52]} 26. hxg4 {[%emt 0:00:04]} Qf7 {[%emt 0:00:29]} 27. gxf5 {[%emt 0:00:04]} Qxf5 {[%emt 0:00:06]} 28. Ng3 {[%emt 0:00:05]} Qf3 {[%emt 0:01:02]} 29. Nxe4 {[%emt 0:00:10]} Rf5 {[%emt 0:04:42]} 30. Ng3 {[%emt 0:00:47]} Nxe3 {[%emt 0:00:48]} 31. Rc8+ {[%emt 0:00:05]} Kh7 {[%emt 0:00:40]} 32. Rc7+ {[%emt 0:00:15]} Kg6 {[%emt 0:00:38]} 33. Qe4 {[%emt 0:00:19]} Qxf2+ {[%emt 0:00:13]} 34. Kh1 {[%emt 0:00:08]} Qe1+ {[%emt 0:00:25]} 35. Kh2 {[%emt 0:00:04]} Qf2+ {[%emt 0:00:12]} 36. Kh1 {[%emt 0:00:11]} Qe1+ {[%emt 0:00:09]} 37. Kh2 {[%emt 0:00:07]} Nf1+ {[%emt 0:00:04]} 0-1